fUSD/lending_fUSD_20241003
["ID","MTS","AMOUNT","RATE_DAILY","PERIOD"]
[339797321,1727987578167,-581.64,0.00037534,120]
[339797322,1727987578177,-500.0,0.00037534,120]
[339797323,1727987578186,-1584.05,0.00037534,120]
[339797325,1727987578196,-500.0,0.00037534,120]
[339797326,1727987578206,-1739.53,0.00037534,120]
[339797327,1727987578216,-780.59,0.00037534,120]
[339797328,1727987578225,-10179.37,0.00037534,120]
[339797329,1727987578234,-567.89,0.00037534,120]
[339797330,1727987578244,-1002.66,0.00037534,120]
[339797331,1727987578253,-504.47,0.00037534,120]
[339797332,1727987578263,-859.91,0.00037534,120]
[339797333,1727987578272,-8270.07,0.00037534,21]
[339797334,1727987578282,-669.41,0.00037534,120]
[339797335,1727987578292,-4586.08,0.00037534,120]
[339797336,1727987578302,-2304.02,0.00037534,120]
[339797337,1727987578312,-631.12,0.00037534,120]
[339797338,1727987578322,-1138.44,0.00037534,120]
[339797339,1727987578331,-811.67,0.00037534,120]
[339797340,1727987578341,-536.29,0.00037534,120]
[339797341,1727987578350,-994.04,0.00037534,120]
[339797342,1727987578359,-4111.09102428,0.0003759,2]
[339797343,1727987578369,-2110.0,0.00037698,2]
[339797344,1727987578378,-200.0,0.000377,20]
[339797345,1727987578388,-589790.27271986,0.0003775,120]
[339797346,1727987578397,-799.0,0.0003775,5]
[339797347,1727987578407,-164.767072,0.000378,2]
[339797348,1727987578416,-3000.0,0.000378,2]
[339797349,1727987578425,-500.0,0.00037808,120]
[339797350,1727987578435,-1830.04,0.00037808,120]
[339797351,1727987578444,-1465.14,0.00037808,120]
[339797352,1727987578454,-731.74,0.00037808,120]
[339797353,1727987578463,-500.0,0.00037808,120]
[339797354,1727987578473,-1375.31,0.00037808,120]
[339797355,1727987578482,-668.57,0.00037808,120]
[339797356,1727987578492,-500.0,0.00037808,120]
[339797357,1727987578502,-1062.68,0.00037808,120]
[339797358,1727987578511,-1108.65,0.00037808,120]
[339797359,1727987578520,-1917.75,0.00037808,120]
[339797360,1727987578530,-1239.66,0.00037808,120]
[339797361,1727987578539,-749.5,0.00037808,120]
[339797362,1727987578549,-1219.3,0.00037808,120]
[339797363,1727987578558,-1706.35,0.00037808,120]
[339797364,1727987578568,-1816.28,0.00037808,120]
[339797365,1727987578577,-608.59,0.00037808,120]
[339797366,1727987578586,-688.2,0.00037808,120]
[339797367,1727987578595,-818.32,0.00037808,120]
[339797368,1727987578604,-2173.75,0.00037808,120]
[339797369,1727987578614,-721.06,0.00037808,120]
[339797370,1727987578623,-2649.5,0.00037808,120]
[339797371,1727987578632,-500.0,0.00037808,120]
[339797372,1727987578642,-500.0,0.00037808,120]
[339797373,1727987578653,-500.0,0.00037808,120]
[339797374,1727987578663,-952.32,0.00037808,120]
[339797375,1727987578673,-508.75,0.00037808,120]
[339797376,1727987578682,-201.7747924,0.00037808,120]
[339797377,1727987578691,-2782.16,0.00037808,120]
[339797378,1727987578702,-500.0,0.00037808,120]
[339797379,1727987578711,-799.66,0.00037808,120]
[339797380,1727987578720,-500.0,0.00037808,120]
[339797381,1727987578730,-528.54,0.00037808,120]
[339797382,1727987578739,-427.34601942,0.00037808,120]
[339797383,1727987578748,-1116.48,0.00037808,120]
[339797384,1727987578758,-500.0,0.00037808,120]
[339797385,1727987578771,-667.6,0.00037808,120]
[339797386,1727987578781,-516.86,0.00037808,120]
[339797387,1727987578792,-577.36,0.00037808,120]
[339797388,1727987578802,-500.0,0.00037808,120]
[339797389,1727987578814,-2275.0,0.00037808,120]
[339797390,1727987578824,-1059.01,0.00037808,120]
[339797391,1727987578833,-1181.76,0.00037808,120]
[339797392,1727987578843,-500.0,0.00037808,120]
[339797393,1727987578853,-678.32,0.00037808,120]
[339797394,1727987578868,-908.96,0.00037808,120]
[339797395,1727987578881,-500.0,0.00037808,120]
[339797396,1727987578891,-806.47,0.00037808,120]
[339797397,1727987578901,-1850.2,0.00037808,120]
[339797398,1727987578912,-500.0,0.00037808,120]
[339797399,1727987578922,-532.65,0.00037808,120]
[339797400,1727987578932,-500.0,0.00037808,120]
[339797401,1727987578943,-500.0,0.00037808,120]
[339797402,1727987578955,-951.98,0.00037808,120]
[339797403,1727987578966,-3113.1,0.00037808,120]
[339797404,1727987578983,-952.18,0.00037808,120]
[339797405,1727987578992,-1578.27,0.00037808,120]
[339797406,1727987579002,-799.85,0.00037808,120]
[339797407,1727987579011,-708.6,0.00037808,120]
[339797408,1727987579023,-584.82,0.00037808,120]
[339797409,1727987579033,-560.83,0.00037808,120]
[339797410,1727987579042,-610.78,0.00037808,120]
[339797411,1727987579052,-1249.01,0.00037808,120]
[339797412,1727987579064,-500.0,0.00037808,120]
[339797413,1727987579074,-1225.26,0.00037808,120]
[339797414,1727987579084,-817.82,0.00037808,120]
[339797415,1727987579093,-911.79,0.00037808,120]
[339797416,1727987579103,-1292.49,0.00037808,7]
[339797417,1727987579113,-517.59,0.00037808,120]
[339797418,1727987579123,-762.72,0.00037808,120]
[339797419,1727987579132,-1184.87,0.00037808,120]
[339797420,1727987579142,-1701.57,0.00037808,120]
[339797421,1727987579151,-714.2,0.00037808,120]
[339797422,1727987579161,-1396.71,0.00037808,120]
[339797423,1727987579171,-1713.42,0.00037808,120]
[339797424,1727987579181,-676.51,0.00037808,120]
[339797425,1727987579191,-543.4,0.00037808,120]
[339797426,1727987579201,-615.69,0.00037808,120]
[339797427,1727987579211,-675.57,0.00037808,120]
[339797428,1727987579220,-822.0,0.00037808,120]
[339797429,1727987579230,-500.0,0.00037808,120]
[339797430,1727987579240,-781.4,0.00037808,120]
[339797431,1727987579250,-747.69,0.00037808,120]
[339797432,1727987579259,-500.0,0.00037808,120]
[339797433,1727987579269,-911.34,0.00037808,120]
[339797434,1727987579278,-617.77,0.00037808,120]
[339797435,1727987579287,-500.0,0.00037808,120]
[339797436,1727987579297,-1099.61,0.00037808,120]
[339797437,1727987579307,-1245.73,0.00037808,120]
[339797438,1727987579316,-605.0,0.00037808,120]
[339797439,1727987579325,-614.52,0.00037808,120]
[339797440,1727987579335,-570.35,0.00037808,120]
[339797441,1727987579345,-806.75,0.00037808,120]
[339797442,1727987579355,-761.4,0.00037808,120]
[339797443,1727987579364,-500.0,0.00037808,120]
[339797444,1727987579374,-1016.56,0.00037808,120]
[339797445,1727987579383,-302.11040891,0.00037808,120]
[339797446,1727987579392,-908.19,0.00037808,120]
[339797447,1727987579402,-225.19756332,0.00037808,120]
[339797448,1727987579412,-650.02,0.00037808,120]
[339797449,1727987579422,-2907.54,0.00037808,120]
[339797450,1727987579431,-1955.84,0.00037808,120]
[339797451,1727987579440,-666.23,0.00037808,120]
[339797452,1727987579450,-619.0,0.00037808,120]
[339797453,1727987579459,-1476.07,0.00037808,120]
[339797454,1727987579470,-630.39442334,0.00037808,120]
[339797455,1727987579480,-200.0,0.00037808,7]
[339797456,1727987579490,-664.13,0.00037808,120]
[339797457,1727987579500,-580.92,0.00037808,120]
[339797458,1727987579511,-559.23,0.00037808,120]
[339797459,1727987579521,-682.12,0.00037808,120]
[339797460,1727987579530,-662.07,0.00037808,120]
[339797461,1727987579540,-1017.64,0.00037808,120]
[339797462,1727987579550,-1843.32,0.00037808,120]
[339797463,1727987579560,-929.85,0.00037808,120]
[339797464,1727987579571,-903.96,0.00037808,120]
[339797465,1727987579580,-1244.9,0.00037808,120]
[339797466,1727987579590,-2059.5,0.00037808,120]
[339797467,1727987579599,-1208.85,0.00037808,120]
[339797468,1727987579608,-1392.18,0.00037808,120]
[339797469,1727987579618,-1754.22,0.00037808,120]
[339797470,1727987579628,-838.34,0.00037808,120]
[339797471,1727987579638,-500.0,0.00037808,120]
[339797472,1727987579647,-3096.26,0.00037808,120]
[339797473,1727987579657,-767.37,0.00037808,120]
[339797474,1727987579666,-1262.93,0.00037808,120]
[339797475,1727987579676,-546.33,0.00037808,120]
[339797476,1727987579686,-1915.72,0.00037808,120]
[339797477,1727987579696,-871.88,0.00037808,120]
[339797478,1727987579705,-900.49,0.00037808,120]
[339797479,1727987579715,-542.05,0.00037808,120]
[339797480,1727987579724,-1246.58,0.00037808,120]
[339797481,1727987579735,-755.2,0.00037808,120]
[339797482,1727987579745,-515.39,0.00037808,120]
[339797483,1727987579755,-1449.61,0.00037808,120]
[339797484,1727987579765,-615.97,0.00037808,120]
[339797485,1727987579774,-500.0,0.00037808,120]
[339797486,1727987579784,-828.98,0.00037808,120]
[339797487,1727987579794,-522.48,0.00037808,120]
[339797488,1727987579805,-500.0,0.00037808,120]
[339797489,1727987579816,-769.93,0.00037808,120]
[339797490,1727987579826,-1535.42,0.00037808,120]
[339797491,1727987579837,-692.01,0.00037808,120]
[339797492,1727987579847,-349.63937706,0.00037808,120]
[339797493,1727987579857,-617.57,0.00037808,120]
[339797494,1727987579867,-1322.47,0.00037808,120]
[339797495,1727987579881,-3041.51,0.00037808,120]
[339797496,1727987579891,-685.28,0.00037808,120]
[339797497,1727987579901,-1088.33,0.00037808,120]
[339797498,1727987579912,-678.3,0.00037808,120]
[339797499,1727987579921,-809.97,0.00037808,120]
[339797500,1727987579931,-617.35,0.00037808,120]
[339797501,1727987579942,-500.0,0.00037808,120]
[339797502,1727987579953,-504.49,0.00037808,120]
[339797503,1727987579964,-2582.55,0.00037808,14]
[339797504,1727987579974,-821.22,0.00037808,120]
[339797505,1727987579984,-1192.92,0.00037808,120]
[339797506,1727987579994,-2036.76,0.00037808,2]
[339797507,1727987580004,-752.83,0.00037808,120]
[339797508,1727987580014,-696.33,0.00037808,120]
[339797509,1727987580025,-1822.29,0.00037808,120]
[339797510,1727987580035,-500.0,0.00037808,120]
[339797511,1727987580046,-1595.23,0.00037808,120]
[339797512,1727987580056,-1676.96,0.00037808,120]
[339797513,1727987580066,-500.0,0.00037808,120]
[339797514,1727987580076,-1430.65,0.00037808,120]
[339797515,1727987580086,-1022.58,0.00037808,120]
[339797516,1727987580095,-572.51,0.00037808,120]
[339797517,1727987580105,-743.36,0.00037808,120]
[339797518,1727987580115,-534.34,0.00037808,120]
[339797519,1727987580125,-722.75,0.00037808,120]
[339797520,1727987580135,-2933.87,0.00037808,120]
[339797521,1727987580145,-891.75,0.00037808,120]
[339797522,1727987580156,-734.12,0.00037808,120]
[339797523,1727987580166,-830.44,0.00037808,120]
[339797524,1727987580176,-2736.92,0.00037808,120]
[339797525,1727987580186,-2840.63,0.00037808,120]
[339797526,1727987580196,-1668.6,0.00037808,120]
[339797527,1727987580207,-963.2,0.00037808,120]
[339797528,1727987580217,-3064.64,0.00037808,120]
[339797529,1727987580228,-895.53,0.00037808,120]
[339797530,1727987580238,-603.25,0.00037808,120]
[339797531,1727987580247,-893.66,0.00037808,120]
[339797532,1727987580257,-1265.22,0.00037808,120]
[339797533,1727987580267,-648.93,0.00037808,120]
[339797534,1727987580278,-702.69,0.00037808,120]
[339797535,1727987580289,-912.75,0.00037808,120]
[339797536,1727987580299,-625.95,0.00037808,120]
[339797537,1727987580310,-500.0,0.00037808,120]
[339797538,1727987580321,-589.87,0.00037808,120]
[339797539,1727987580331,-904.15,0.00037808,120]
[339797540,1727987580342,-809.38,0.00037808,120]
[339797541,1727987580352,-1583.67,0.00037808,120]
[339797542,1727987580363,-2849.48,0.00037808,120]
[339797543,1727987580373,-1559.78,0.00037808,120]
[339797544,1727987580383,-526.9,0.00037808,120]
[339797545,1727987580393,-887.97,0.00037808,120]
[339797546,1727987580496,-522.66,0.00037808,120]
[339797547,1727987580508,-608.69,0.00037808,120]
[339797548,1727987580518,-1196.23,0.00037808,120]
[339797549,1727987580527,-1435.23,0.00037808,120]
[339797550,1727987580537,-1891.17,0.00037808,120]
[339797551,1727987580547,-734.62,0.00037808,120]
[339797552,1727987580557,-1907.44,0.00037808,120]
[339797553,1727987580566,-500.0,0.00037808,5]
[339797554,1727987580576,-954.92,0.00037808,30]
[339797555,1727987580586,-760.37,0.00037808,120]
[339797556,1727987580597,-1267.83,0.00037808,120]
[339797557,1727987580607,-500.0,0.00037808,120]
[339797558,1727987580617,-692.31,0.00037808,120]
[339797559,1727987580626,-3152.28,0.00037808,120]
[339797560,1727987580636,-4273.85,0.00037808,2]
[339797561,1727987580647,-2240.67,0.00037808,120]
[339797562,1727987580658,-566.42,0.00037808,120]
[339797563,1727987580668,-1375.15,0.00037808,120]
[339797564,1727987580678,-1352.94,0.00037808,120]
[339797565,1727987580689,-2143.59,0.00037808,120]
[339797566,1727987580698,-275.53417278,0.00037808,120]
[339797567,1727987580707,-2552.25,0.00037808,120]
[339797568,1727987580717,-807.0,0.00037808,120]
[339797569,1727987580727,-1929.43,0.00037808,120]
[339797570,1727987580738,-500.0,0.00037808,120]
[339797571,1727987580748,-500.0,0.00037808,120]
[339797572,1727987580758,-687.7,0.00037808,120]
[339797573,1727987580767,-685.66,0.00037808,120]
[339797574,1727987580777,-478.98296313,0.00037808,120]
[339797575,1727987580787,-622.6027992,0.00037808,120]
[339797576,1727987580796,-1124.73,0.00037808,120]
[339797577,1727987580806,-500.0,0.00037808,120]
[339797578,1727987580816,-500.0,0.00037808,120]
[339797579,1727987580825,-1267.04,0.00037808,120]
[339797580,1727987580835,-1073.96,0.00037808,120]
[339797581,1727987580845,-515.88,0.00037808,120]
[339797582,1727987580854,-924.47,0.00037808,120]
[339797583,1727987580863,-687.49,0.00037808,120]
[339797584,1727987580877,-3529.62,0.00037808,120]
[339797585,1727987580887,-510.52544724,0.00037808,120]
[339797586,1727987580897,-2122.92,0.00037808,120]
[339797587,1727987580906,-583.93,0.00037808,120]
[339797588,1727987580916,-1443.8,0.00037808,120]
[339797589,1727987580926,-598.1,0.00037808,120]
[339797590,1727987580935,-1130.17,0.00037808,120]
[339797591,1727987580946,-500.0,0.00037808,120]
[339797592,1727987580956,-512.25,0.00037808,120]
[339797593,1727987580966,-739.66,0.00037808,120]
[339797594,1727987580976,-2221.7,0.00037808,120]
[339797595,1727987580985,-753.47,0.00037808,120]
[339797596,1727987580995,-878.47,0.00037808,120]
[339797597,1727987581004,-2105.23,0.00037808,120]
[339797598,1727987581014,-1101.24,0.00037808,120]
[339797599,1727987581023,-880.23,0.00037808,120]
[339797600,1727987581033,-500.0,0.00037808,120]
[339797601,1727987581043,-594.49,0.00037808,120]
[339797602,1727987581052,-500.0,0.00037808,120]
[339797603,1727987581062,-1746.33,0.00037808,120]
[339797604,1727987581072,-983.59,0.00037808,120]
[339797605,1727987581081,-1535.26,0.00037808,120]
[339797606,1727987581091,-3156.06,0.00037808,120]
[339797607,1727987581101,-889.14,0.00037808,120]
[339797608,1727987581111,-754.45,0.00037808,120]
[339797609,1727987581120,-640.32,0.00037808,120]
[339797610,1727987581129,-2375.19,0.00037808,120]
[339797611,1727987581139,-580.84,0.00037808,120]
[339797612,1727987581148,-652.15,0.00037808,120]
[339797613,1727987581158,-2171.15,0.00037808,120]
[339797614,1727987581168,-970.9,0.00037808,120]
[339797615,1727987581177,-576.98,0.00037808,120]
[339797616,1727987581187,-2322.76,0.00037808,120]
[339797617,1727987581197,-2446.1,0.00037808,120]
[339797618,1727987581207,-500.0,0.00037808,120]
[339797619,1727987581217,-569.39,0.00037808,120]
[339797620,1727987581226,-865.83,0.00037808,120]
[339797621,1727987581236,-500.0,0.00037808,120]
[339797622,1727987581246,-559.14,0.00037808,120]
[339797623,1727987581256,-208.35622602,0.00037808,120]
[339797624,1727987581265,-526.15,0.00037808,120]
[339797625,1727987581275,-500.0,0.00037808,120]
[339797626,1727987581285,-231.42967191,0.00037808,120]
[339797627,1727987581294,-1022.47,0.00037808,120]
[339797628,1727987581304,-1404.02,0.00037808,120]
[339797629,1727987581314,-500.0,0.00037808,120]
[339797630,1727987581324,-641.91,0.00037808,120]
[339797631,1727987581334,-926.29,0.00037808,120]
[339797632,1727987581343,-796.9,0.00037808,120]
[339797633,1727987581352,-2021.14,0.00037808,120]
[339797634,1727987581361,-3420.05,0.00037808,120]
[339797635,1727987581370,-585.28,0.00037808,120]
[339797636,1727987581379,-500.0,0.00037808,120]
[339797637,1727987581389,-920.88,0.00037808,120]
[339797638,1727987581398,-1372.22,0.00037808,120]
[339797639,1727987581407,-501.73,0.00037808,120]
[339797640,1727987581417,-1014.09,0.00037808,120]
[339797641,1727987581426,-2342.53,0.00037808,120]
[339797642,1727987581435,-849.67,0.00037808,120]
[339797643,1727987581444,-503.33,0.00037808,120]
[339797644,1727987581452,-650.32,0.00037808,120]
[339797645,1727987581462,-619.95,0.00037808,120]
[339797646,1727987581472,-4513.04,0.00037808,120]
[339797647,1727987581481,-697.86,0.00037808,120]
[339797648,1727987581491,-1906.45,0.00037808,120]
[339797649,1727987581501,-500.0,0.00037808,120]
[339797650,1727987581510,-1342.8,0.00037808,120]
[339797651,1727987581520,-500.0,0.00037808,120]
[339797652,1727987581529,-4469.7,0.00037808,120]
[339797653,1727987581538,-2820.31,0.00037808,120]
[339797654,1727987581548,-1714.59,0.00037808,120]
[339797655,1727987581557,-1567.97,0.00037808,120]
[339797656,1727987581567,-858.96,0.00037808,120]
[339797657,1727987581576,-1071.24,0.00037808,120]
[339797658,1727987581585,-1083.26,0.00037808,120]
[339797659,1727987581595,-1923.73,0.00037808,120]
[339797660,1727987581604,-3953.73,0.00037808,120]
[339797661,1727987581615,-646.54,0.00037808,120]
[339797662,1727987581625,-1541.86,0.00037808,120]
[339797663,1727987581635,-2326.51,0.00037808,120]
[339797664,1727987581645,-825.35,0.00037808,120]
[339797665,1727987581656,-1401.87,0.00037808,120]
[339797666,1727987581665,-8162.3,0.00037808,120]
[339797667,1727987581675,-2202.86,0.00037808,3]
[339797668,1727987581685,-1721.6,0.00037808,120]
[339797669,1727987581695,-1824.09,0.00037808,120]
[339797670,1727987581705,-797.25,0.00037808,120]
[339797671,1727987581715,-3694.14,0.00037808,120]
[339797672,1727987581724,-648.29,0.00037808,120]
[339797673,1727987581734,-1962.84,0.00037808,120]
[339797674,1727987581743,-770.99,0.00037808,120]
[339797675,1727987581753,-1812.58,0.00037808,120]
[339797676,1727987581762,-1106.97,0.00037808,120]
[339797677,1727987581771,-995.24,0.00037808,120]
[339797678,1727987581781,-1533.42,0.00037808,120]
[339797679,1727987581790,-1245.45,0.00037808,120]
[339797680,1727987581799,-2708.28,0.00037808,120]
[339797681,1727987581809,-919.76,0.00037808,120]
[339797682,1727987581818,-1028.68,0.00037808,120]
[339797683,1727987581828,-2392.87,0.00037808,120]
[339797684,1727987581838,-1219.91,0.00037808,120]
[339797685,1727987581848,-1971.05,0.00037808,120]
[339797686,1727987581858,-967.14,0.00037808,120]
[339797687,1727987581868,-11039.47,0.00037808,120]
[339797688,1727987581878,-1835.01,0.00037808,120]
[339797689,1727987581888,-647.95,0.00037808,120]
[339797690,1727987581898,-1066.51,0.00037808,120]
[339797691,1727987581908,-2065.61,0.00037808,120]
[339797692,1727987581918,-2041.33,0.00037808,120]
[339797693,1727987581928,-701.71,0.00037808,120]
[339797694,1727987581938,-512.38,0.00037808,120]
[339797695,1727987581948,-527.76,0.00037808,120]
[339797696,1727987581959,-527.0,0.00037808,120]
[339797697,1727987581969,-1302.4,0.00037808,120]
[339797698,1727987581979,-968.42,0.00037808,120]
[339797699,1727987581989,-1041.18,0.00037808,120]
[339797700,1727987581999,-1510.82,0.00037808,120]
[339797701,1727987582009,-2058.43,0.00037808,120]
[339797702,1727987582019,-2566.99,0.00037808,120]
[339797703,1727987582029,-1635.85,0.00037808,120]
[339797704,1727987582040,-500.52,0.00037808,120]
[339797705,1727987582050,-1123.06,0.00037808,120]
[339797706,1727987582059,-1766.39,0.00037808,120]
[339797707,1727987582069,-1421.18,0.00037808,120]
[339797708,1727987582079,-2301.76,0.00037808,120]
[339797709,1727987582090,-1093.77,0.00037808,120]
[339797710,1727987582100,-2041.08,0.00037808,120]
[339797711,1727987582110,-1056.72,0.00037808,120]
[339797712,1727987582121,-500.0,0.00037808,120]
[339797713,1727987582130,-575.99,0.00037808,120]
[339797714,1727987582141,-4824.18,0.00037808,120]
[339797715,1727987582151,-2539.88,0.00037808,120]
[339797716,1727987582162,-1031.81,0.00037808,120]
[339797717,1727987582173,-1058.32,0.00037808,120]
[339797718,1727987582185,-500.0,0.00037808,120]
[339797719,1727987582196,-2770.27,0.00037808,120]
[339797720,1727987582207,-2126.28,0.00037808,120]
[339797721,1727987582217,-3109.58,0.00037808,120]
[339797722,1727987582228,-1989.39,0.00037808,120]
[339797723,1727987582238,-2838.83,0.00037808,120]
[339797724,1727987582248,-2454.73,0.00037808,120]
[339797725,1727987582259,-2489.9,0.00037808,120]
[339797726,1727987582269,-1548.63,0.00037808,120]
[339797727,1727987582278,-1539.86,0.00037808,120]
[339797728,1727987582288,-333.97337175,0.00037808,120]
[339797729,1727987582298,-1135.51,0.00037808,120]
[339797730,1727987582309,-751.5,0.00037808,120]
[339797731,1727987582318,-26307.75,0.00037808,120]
[339797732,1727987582328,-1359.32,0.00037808,120]
[339797733,1727987582338,-920.13,0.00037808,120]
[339797734,1727987582347,-2373.28,0.00037808,120]
[339797735,1727987582357,-723.9,0.00037808,120]
[339797736,1727987582367,-500.0,0.00037808,120]
[339797737,1727987582377,-683.05,0.00037808,120]
[339797738,1727987582387,-1328.33,0.00037808,120]
[339797739,1727987582397,-1718.99,0.00037808,120]
[339797740,1727987582406,-500.0,0.00037808,120]
[339797741,1727987582416,-2515.59,0.00037808,120]
[339797742,1727987582426,-953.41,0.00037808,120]
[339797743,1727987582436,-876.22,0.00037808,120]
[339797744,1727987582446,-2264.01,0.00037808,120]
[339797745,1727987582456,-2588.02,0.00037808,120]
[339797746,1727987582466,-1281.35,0.00037808,120]
[339797747,1727987582476,-1057.1,0.00037808,120]
[339797748,1727987582486,-1543.66,0.00037808,120]
[339797749,1727987582497,-567.28,0.00037808,120]
[339797750,1727987582507,-1173.73,0.00037808,120]
[339797751,1727987582517,-622.45,0.00037808,120]
[339797752,1727987582527,-831.03,0.00037808,120]
[339797753,1727987582537,-574.46,0.00037808,120]
[339797754,1727987582547,-605.72,0.00037808,120]
[339797755,1727987582557,-656.14,0.00037808,24]
[339797756,1727987582567,-999.57,0.00037808,120]
[339797757,1727987582577,-1059.55,0.00037808,120]
[339797758,1727987582586,-1114.36,0.00037808,120]
[339797759,1727987582595,-2557.98,0.00037808,120]
[339797760,1727987582606,-2619.08,0.00037808,120]
[339797761,1727987582616,-985.85,0.00037808,120]
[339797762,1727987582626,-2196.8,0.00037808,120]
[339797763,1727987582637,-1368.57,0.00037808,120]
[339797764,1727987582649,-534.46,0.00037808,120]
[339797765,1727987582659,-623.45,0.00037808,120]
[339797766,1727987582670,-1760.97,0.00037808,120]
[339797767,1727987582680,-4833.89,0.00037808,120]
[339797768,1727987582690,-1036.03,0.00037808,120]
[339797769,1727987582701,-613.95,0.00037808,120]
[339797770,1727987582711,-1295.57,0.00037808,120]
[339797771,1727987582722,-1100.59,0.00037808,120]
[339797772,1727987582731,-1437.23,0.00037808,120]
[339797773,1727987582747,-581.64,0.00037808,120]
[339797774,1727987582759,-500.0,0.00037808,120]
[339797775,1727987582768,-1584.05,0.00037808,120]
[339797776,1727987582779,-500.0,0.00037808,120]
[339797777,1727987582788,-1739.53,0.00037808,120]
[339797778,1727987582803,-780.59,0.00037808,120]
[339797779,1727987582812,-567.89,0.00037808,120]
[339797780,1727987582821,-1002.66,0.00037808,120]
[339797781,1727987582830,-10179.37,0.00037808,120]
[339797782,1727987582840,-504.47,0.00037808,120]
[339797783,1727987582850,-859.91,0.00037808,120]
[339797784,1727987582859,-8270.07,0.00037808,21]
[339797785,1727987582869,-669.41,0.00037808,120]
[339797786,1727987582882,-4586.08,0.00037808,120]
[339797787,1727987582892,-2304.02,0.00037808,120]
[339797788,1727987582901,-631.12,0.00037808,120]
[339797789,1727987582911,-1138.44,0.00037808,120]
[339797790,1727987582924,-811.67,0.00037808,120]
[339797791,1727987582934,-536.29,0.00037808,120]
[339797792,1727987582944,-151.100317,0.00037848,119]
[339797793,1727987582956,-56256.23738713,0.00037898,31]
[339797794,1727987582966,-8047.2,0.00037898,117]
[339797795,1727987582975,-49710.53828652,0.000379,2]
[339797796,1727987582985,-2251.5019805,0.00037906,7]
[339797797,1727987582995,-3007.50576663,0.00037906,7]
[339797798,1727987583005,-2899.87242423,0.00037906,7]
[339797799,1727987583014,-151.100218,0.00037948,120]
[339797800,1727987583024,-150.0,0.00037976,120]
[339797801,1727987583034,-50000.0,0.00038,38]
[339797802,1727987583044,-50000.0,0.00038,33]
[339797803,1727987583053,-1000000.0,0.00038,120]
[339797804,1727987583062,-600398.69753713,0.00038,60]
[339797805,1727987583073,-500.0,0.00038,120]
[339797806,1727987583082,-900.0,0.00038,39]
[339797807,1727987583092,-2149.0,0.00038,120]
[339797808,1727987583102,-1882.0,0.00038,10]
[339797809,1727987583113,-400.0,0.00038,120]
[339797810,1727987583123,-159.41081,0.00038,120]
[339797811,1727987583133,-156.78296095,0.00038,30]
[339797812,1727987583143,-30036.2880938,0.00038,30]
[339797813,1727987583154,-29795.92322141,0.00038,60]
[339797814,1727987583164,-2442.62082194,0.00038,120]
[339797815,1727987583173,-3131.00603854,0.00038,120]
[339797816,1727987583183,-308.99,0.00038,120]
[339797817,1727987583193,-962.9,0.00038,120]
[339797818,1727987583202,-333.3,0.00038,120]
[339797819,1727987583212,-1019.25,0.00038,120]
[339797820,1727987583222,-10000.0,0.00038,4]
[339797821,1727987583231,-12844.11773996,0.00038,4]